bitfinex/quotes_ETHUSD_20220113
["timestamp","ask_amount","ask_price","bid_price","bid_amount"]
[1642063859240,4.35212853,3354.8,3354.7,8.55060676]
[1642063859438,4.77812853,3354.8,3354.7,3.07460676]
[1642063859690,2.15377807,3354.8,3354.7,3.07460676]
[1642063860886,2.15377807,3354.8,3354.7,6.76e-06]
[1642063861588,4.75001376,3354.8,3354.7,6.76e-06]
[1642063861788,3.62337254,3354.8,3354.7,6.76e-06]
[1642063862391,3.62223569,3354.8,3354.7,6.76e-06]
[1642063863190,5.15710223,3354.8,3354.7,6.76e-06]
[1642063863432,5.45710223,3354.8,3354.7,6.76e-06]
[1642063864434,5.15710223,3354.8,3354.7,6.76e-06]
[1642063864637,3.62223569,3354.8,3354.7,6.76e-06]
[1642063864939,3.92223569,3354.8,3354.7,6.76e-06]
[1642063865738,1.026,3354.8,3354.7,6.76e-06]
[1642063866235,1.026,3354.8,3354.7,0.05182176]
[1642063867683,0.726,3354.8,3354.7,0.05182176]
[1642063867982,0.426,3354.8,3354.7,0.05182176]
[1642063868583,0.74524,3354.9,3354.7,1.57192969]
[1642063869189,0.74523,3355.1,3354.7,1.57192969]
[1642063869391,2.60230478,3355.3,3355.0,0.74511]
[1642063869392,1.11180478,3355.3,3355.0,0.74511]
[1642063869588,1.11180478,3355.3,3355.1,0.1192]
[1642063870595,3.39457975,3355.4,3355.1,0.1192]
[1642063870837,3.39457975,3355.4,3354.8,1.49022]
[1642063870838,3.39457975,3355.4,3354.9,0.1192]
[1642063871032,0.00397896,3355.3,3354.9,0.1192]
[1642063871434,0.00341054,3355.2,3354.9,0.1192]
[1642063871632,0.30341054,3355.2,3354.9,0.1192]
[1642063871835,0.00284212,3355.1,3354.9,0.1192]
[1642063872032,0.74814212,3355.1,3354.9,0.1192]
[1642063872235,0.00227369,3355.0,3354.9,0.1192]
[1642063873235,0.30227369,3355.0,3354.9,0.1192]
[1642063874584,0.30227369,3355.0,3354.7,0.05182176]
[1642063874787,0.74533,3354.9,3354.7,0.05182176]
[1642063874988,0.74703527,3354.9,3354.7,0.05182176]
[1642063875190,0.00113685,3354.8,3354.7,0.05182176]
[1642063875594,0.00113685,3354.8,3354.7,1.36299654]
[1642063878638,0.00113685,3354.8,3354.7,0.05182176]
[1642063879645,0.00113685,3354.8,3354.7,1.59355169]
[1642063879944,0.00113685,3354.8,3354.7,3.83529572]
[1642063880845,0.00113685,3354.8,3354.7,2.29356579]
[1642063882393,0.30438954,3354.8,3354.7,2.29356579]
[1642063884192,0.00113685,3354.8,3354.7,2.29356579]
[1642063887844,0.16603541,3354.9,3354.7,2.29356579]
[1642063889245,0.16603541,3354.9,3354.7,0.05182176]
[1642063890187,0.74523,3355.1,3354.7,0.79705176]
[1642063890387,0.3,3355.2,3354.7,0.79705176]
[1642063890592,1.6352,3355.3,3354.7,0.79705176]
[1642063890791,1.9352,3355.3,3354.7,0.79705176]
[1642063890988,0.00113685,3355.2,3354.8,0.00113684]
[1642063891187,0.00113685,3355.2,3354.8,0.74632684]
[1642063893733,0.00113685,3355.2,3354.9,2.75103582]
[1642063893932,0.00113685,3355.2,3354.8,0.74632684]
[1642063894132,0.00113685,3355.2,3354.9,0.1192]
[1642063899691,0.30113685,3355.2,3354.9,0.1192]
[1642063901739,0.00113685,3355.2,3354.9,0.1192]
[1642063905310,0.00113685,3355.2,3354.8,0.86552684]
[1642063908216,0.00113685,3355.2,3354.9,2.19755197]
[1642063908839,0.00113685,3355.2,3354.9,3.19755197]
[1642063909037,0.00113685,3355.2,3354.9,2.19755197]
[1642063910040,0.00113685,3355.2,3355.0,2.19755197]
[1642063911043,0.00113685,3355.2,3354.9,2.19755197]
[1642063913586,0.28712897,3355.3,3354.9,2.19755197]
[1642063913787,0.28712897,3355.3,3355.0,0.00113684]
[1642063913989,0.28712897,3355.3,3355.0,0.74633684]
[1642063914190,0.74517,3355.4,3355.0,0.74633684]
[1642063918043,0.86437,3355.4,3355.0,0.74633684]
[1642063922388,0.74517,3355.4,3355.0,0.74633684]
[1642063932940,1.04517,3355.4,3355.0,0.74633684]
[1642063934040,2.7018785,3355.3,3355.0,0.74633684]
[1642063934240,0.41151671,3355.3,3355.0,0.74633684]
[1642063934439,3.08144873,3355.3,3355.1,2.13034363]
[1642063934690,0.41151671,3355.3,3355.1,2.13034363]
[1642063943690,0.74517,3355.4,3355.1,2.13034363]
[1642063946837,1.04517,3355.4,3355.1,2.13034363]
[1642063950093,0.3,3355.4,3355.1,2.13034363]
[1642063950496,0.4192,3355.5,3355.1,2.13034363]
[1642063950694,0.3,3355.5,3355.1,2.87548363]
[1642063950893,0.00113685,3355.4,3355.1,2.87548363]
[1642063951196,0.00170527,3355.5,3355.1,2.87548363]
[1642063951395,0.00170527,3355.5,3355.2,0.051807]
[1642063952096,0.7452,3355.4,3355.2,0.051807]
[1642063952296,0.7840176,3355.4,3355.2,0.051807]
[1642063952496,0.3,3355.3,3355.2,0.051807]
[1642063952696,3.00453064,3355.3,3355.2,0.051807]
[1642063952897,2.98910369,3355.3,3355.2,0.051807]
[1642063953100,0.3,3355.3,3355.2,0.051807]
[1642063953348,2.98414542,3355.3,3355.2,0.051807]
[1642063953743,2.68414542,3355.3,3355.2,0.051807]
[1642063954749,0.77981977,3355.4,3355.2,0.051807]
[1642063954750,0.77835941,3355.4,3355.2,0.051807]
[1642063954950,0.7452,3355.4,3355.2,0.051807]
[1642063955949,2.80395406,3355.3,3355.2,0.051807]
[1642063956349,2.92315406,3355.3,3355.2,0.051807]
[1642063959800,3.22315406,3355.3,3355.2,0.051807]
[1642063961044,3.52315406,3355.3,3355.2,0.051807]
[1642063963742,3.96915875,3355.3,3355.2,2.13813964]
[1642063964344,3.96915875,3355.3,3355.2,0.051807]
[1642063964992,3.96915875,3355.3,3355.2,2.13813964]
[1642063965593,0.86520469,3355.3,3355.2,2.13813964]
[1642063965793,0.74600469,3355.3,3355.2,2.13813964]
[1642063966196,3.42743015,3355.3,3355.2,2.13813964]
[1642063966998,3.72743015,3355.3,3355.2,2.13813964]
[1642063967295,1.04600469,3355.3,3355.2,2.13813964]
[1642063967694,3.72089136,3355.3,3355.2,2.13813964]
[1642063968194,1.04600469,3355.3,3355.2,2.13813964]
[1642063968845,3.73036447,3355.3,3355.2,2.13813964]
[1642063973798,3.53751647,3355.3,3355.2,2.13813964]
[1642063973999,3.43036447,3355.3,3355.2,2.13813964]
[1642063975201,1.04600469,3355.3,3355.2,2.13813964]
[1642063978138,3.73602131,3355.3,3355.2,2.13813964]
[1642063978340,1.04600469,3355.3,3355.2,2.13813964]
[1642063979594,3.78290734,3355.3,3355.2,2.13813964]
[1642063980401,4.20890734,3355.3,3355.2,2.13813964]
[1642063980997,0.3,3354.9,3354.6,0.1192]
[1642063981200,1.26481725,3354.7,3354.6,0.1192]
[1642063981398,2.74171725,3354.7,3354.6,0.1192]
[1642063981599,3.04171725,3354.7,3354.6,0.1192]
[1642063981902,1.26481725,3354.7,3354.5,0.1192]
[1642063982498,1.52080819,3354.8,3354.5,0.1192]
[1642063982499,0.03001949,3354.8,3354.5,0.1192]
[1642063982700,0.03519255,3355.1,3354.5,0.1192]
[1642063982899,0.3,3355.0,3354.5,0.1192]
[1642063983099,2.99003449,3355.2,3354.5,0.1192]
[1642063983365,0.7453,3354.8,3354.5,0.1192]
[1642063983553,2.66330842,3354.6,3354.5,0.1192]
[1642063983954,2.66330842,3354.6,3354.5,0.12317896]
[1642063984352,2.96330842,3354.6,3354.5,0.12317896]
[1642063984556,2.66330842,3354.6,3354.5,0.12317896]
[1642063984956,2.66330842,3354.6,3354.5,0.00397896]
[1642063987703,2.96330842,3354.6,3354.5,0.00397896]
[1642063988302,3.26330842,3354.6,3354.5,0.00397896]
[1642063991445,6.11265439,3354.6,3354.5,0.00397896]
[1642063991646,2.8,3354.5,3354.4,5.986096]
[1642063991846,6.22559462,3354.5,3354.4,5.986096]
[1642063992046,4.3452,3354.5,3354.4,3.537996]
[1642063992248,3.3452,3354.5,3353.8,1.51814142]
[1642063992445,1.52454407,3354.2,3353.8,1.51814142]
[1642063992647,0.5452,3354.1,3353.9,0.00341054]
[1642063993047,0.5452,3354.1,3353.5,4.98201037]
[1642063993048,2.88039462,3354.0,3353.5,4.98201037]
[1642063993247,0.5452,3353.9,3353.5,2.28653097]
[1642063993449,1.5863,3353.9,3353.6,0.00170527]
[1642063993650,0.74574,3353.8,3353.6,0.00170527]
[1642063993848,0.7457932,3353.5,3353.2,0.00397897]
[1642063994048,1.83489185,3353.4,3353.2,0.00397897]
[1642063994248,1.83489185,3353.4,3353.3,0.00341055]
[1642063994448,2.13489185,3353.4,3353.2,0.00397897]
[1642063995506,1.46127076,3353.3,3353.2,0.00397897]
[1642063995707,1.67007076,3353.3,3353.2,0.00397897]
[1642063995904,1.97007076,3353.3,3353.2,0.00397897]
[1642063996704,2.32250386,3353.3,3353.2,0.00397897]
[1642064000846,2.44170386,3353.3,3353.2,0.00397897]
[1642064001446,2.23290386,3353.3,3353.2,0.00397897]
[1642064003197,2.65890386,3353.3,3353.2,0.00397897]
[1642064003595,2.53970386,3353.3,3353.2,0.00397897]
[1642064007953,2.18727076,3353.3,3353.2,0.00397897]
[1642064008151,2.46137474,3353.4,3353.2,0.00397897]
[1642064008354,1.28969185,3353.4,3353.2,0.00397897]
[1642064009252,1.3144984,3353.3,3353.2,0.00397897]
[1642064009896,1.3144984,3353.3,3352.8,1.12545266]
[1642064010096,2.0601284,3353.3,3352.9,0.00568424]
[1642064010299,2.09914127,3353.3,3353.0,0.04629394]
[1642064010496,2.09914127,3353.3,3353.0,0.1192]
[1642064010700,2.09914127,3353.3,3353.1,0.00454739]
[1642064011300,2.09914127,3353.3,3353.0,0.12431582]
[1642064011500,2.09914127,3353.3,3353.1,0.00454739]
[1642064012201,0.3,3353.2,3353.1,0.00454739]
[1642064012600,2.09914127,3353.3,3353.1,0.00454739]
[1642064012802,2.09914127,3353.3,3352.5,3.00695994]
[1642064013000,0.3,3353.1,3352.6,0.1192]
[1642064013202,0.74568,3353.0,3352.6,0.12658951]
[1642064013446,0.74568,3353.0,3352.7,0.00682109]
[1642064013846,0.3,3353.1,3352.7,0.00682109]
[1642064014044,0.03090824,3353.1,3352.7,0.00682109]
[1642064014244,0.74569,3353.0,3352.7,0.00682109]
[1642064014444,1.04569,3353.0,3352.7,0.00682109]
[1642064015049,0.74569,3353.0,3352.7,0.00682109]
[1642064015849,1.04569,3353.0,3352.7,0.00682109]
[1642064016850,0.74569,3353.0,3352.7,0.00682109]
[1642064017097,1.04569,3353.0,3352.7,0.00682109]
[1642064017298,0.1193,3352.9,3352.7,0.00682109]
[1642064020859,1.46499,3353.0,3352.7,0.00682109]
[1642064021247,1.46499,3353.0,3352.4,0.00852636]
[1642064022248,0.7193,3353.0,3352.4,0.00852636]
[1642064022447,0.74573,3352.8,3352.4,0.00852636]
[1642064022747,1.04573,3352.8,3352.4,0.00852636]
[1642064024800,1.07692685,3352.8,3352.4,0.00852636]
[1642064026699,1.49139,3353.4,3352.5,0.1355918]
[1642064026903,0.03266081,3353.4,3352.7,0.01226201]
[1642064027099,6.0419,3353.8,3352.8,1.50703642]
[1642064027300,6.78742,3353.8,3352.8,1.61646266]
[1642064027499,6.78742,3353.8,3352.9,0.00568424]
[1642064027701,1.52539638,3353.2,3353.0,0.1192]
[1642064028102,1.52539638,3353.2,3353.1,0.00454739]
[1642064029658,0.77750137,3353.6,3353.1,1.00454739]
[1642064029859,0.03895353,3353.9,3353.2,2.61603885]
[1642064030057,4.75167238,3354.1,3353.3,1.0]
[1642064030260,4.45167238,3354.1,3353.4,2.80994405]
[1642064030457,0.77577238,3354.1,3353.4,0.00284212]
[1642064030658,0.77577238,3354.1,3353.5,0.0022737]
[1642064030858,1.16648207,3353.8,3353.4,1.30114733]
[1642064031064,1.91199207,3353.8,3353.4,1.30114733]
[1642064031359,1.91199207,3353.8,3353.5,0.0022737]
[1642064032605,1.91199207,3353.8,3353.5,1.0022737]
[1642064032905,1.91199207,3353.8,3353.5,1.29008407]
[1642064033205,1.33966006,3354.0,3353.6,2.64989364]
[1642064033405,1.45886006,3354.0,3353.6,2.61669533]
[1642064033608,1.45886006,3354.0,3353.7,0.00113685]
[1642064033806,0.3,3353.9,3353.7,0.00113685]
[1642064036352,0.3,3353.9,3353.7,1.28894722]
[1642064036951,2.48080976,3354.0,3353.7,1.28894722]
[1642064037351,2.48080976,3354.0,3353.7,0.00113685]
[1642064037752,2.48080976,3354.0,3353.5,0.0022737]
[1642064037953,0.7455,3353.8,3353.5,0.0022737]
[1642064038151,2.48080976,3354.0,3353.5,0.0022737]
[1642064039055,2.48080976,3354.0,3353.5,3.9126491]
[1642064039456,2.48080976,3354.0,3353.5,1.29008407]
[1642064039906,0.3,3353.9,3353.5,1.29008407]
[1642064040109,0.6955,3353.8,3353.6,1.28781037]
[1642064040509,0.6955,3353.8,3353.7,0.00113685]
[1642064040909,0.3,3353.9,3353.7,2.62861481]
[1642064041213,0.3,3353.9,3353.7,0.00113685]
[1642064042411,0.1192,3354.3,3353.7,3.17860724]
[1642064042610,1.16456,3354.5,3353.8,1.0]
[1642064042813,0.00170527,3354.2,3353.8,1.0]
[1642064043011,0.00170527,3354.2,3353.7,2.85642938]
[1642064043012,0.00170527,3354.2,3353.7,0.00113685]
[1642064043212,1.41691117,3353.9,3353.7,0.00113685]
[1642064043455,1.41691117,3353.9,3353.7,2.62568661]
[1642064043860,1.41691117,3353.9,3353.7,0.00113685]
[1642064044257,1.41691117,3353.9,3353.7,2.70439586]
[1642064044456,1.41691117,3353.9,3353.7,2.63270163]
[1642064044659,1.41691117,3353.9,3353.7,0.00113685]
[1642064046258,2.16235117,3353.9,3353.7,0.00113685]
[1642064046661,1.41691117,3353.9,3353.7,0.00113685]
[1642064047907,1.41691117,3353.9,3353.7,2.60937001]
[1642064048107,1.41691117,3353.9,3353.8,1.0]
[1642064048909,1.71691117,3353.9,3353.8,1.0]
[1642064049114,1.71691117,3353.9,3353.7,2.59875427]
[1642064049611,2.46235117,3353.9,3353.7,0.00113685]
[1642064050514,2.46235117,3353.9,3353.5,0.0022737]
[1642064050952,2.16235117,3353.9,3353.5,0.0022737]
[1642064051758,1.41691117,3353.9,3353.5,0.0022737]
[1642064051956,1.41691117,3353.9,3353.6,0.7454]
[1642064052156,1.13822666,3354.3,3353.7,2.67524862]
[1642064052359,0.30227369,3354.3,3353.7,2.67638547]
[1642064052559,0.00113684,3354.1,3353.8,1.0]
[1642064052760,0.00113684,3354.1,3353.8,1.1192]
[1642064052959,0.00284211,3354.4,3353.8,1.1192]
[1642064053159,1.4428946,3354.1,3353.9,2.63177785]
[1642064053359,1.4428946,3354.1,3353.8,0.86452]
[1642064053563,1.4428946,3354.1,3353.9,0.74532]
[1642064053859,1.4428946,3354.1,3353.8,0.1192]
[1642064056404,1.4428946,3354.1,3353.8,2.62641154]
[1642064056809,1.4428946,3354.1,3353.8,2.61569935]
[1642064057409,1.4428946,3354.1,3353.8,2.61650591]
[1642064057604,1.4428946,3354.1,3353.8,2.6151511]
[1642064057808,1.4428946,3354.1,3353.7,1.49185685]
[1642064058107,1.4428946,3354.1,3353.7,0.74649685]
[1642064058374,1.4428946,3354.1,3353.7,0.86569685]
[1642064058768,1.4428946,3354.1,3353.7,0.12033685]
[1642064059375,1.4428946,3354.1,3353.7,1.12033685]
[1642064059573,1.4428946,3354.1,3353.8,3.96535543]
[1642064060274,1.4428946,3354.1,3353.9,1.3120241]
[1642064061478,1.4428946,3354.1,3353.9,2.0573441]
[1642064062104,1.4428946,3354.1,3353.9,1.3120241]
[1642064062708,1.4428946,3354.1,3354.0,1.3120241]
[1642064063106,1.42694071,3354.1,3354.0,1.3120241]
[1642064064414,1.42694071,3354.1,3353.9,1.3120241]
[1642064064415,2.64777275,3354.1,3353.9,1.3120241]
[1642064065512,1.42694071,3354.1,3353.9,1.3120241]
[1642064065710,1.42694071,3354.1,3354.0,2.63183294]
[1642064066572,0.00113684,3354.1,3354.0,2.63183294]
[1642064067569,0.00113684,3354.1,3354.0,3.94385704]
[1642064070407,0.00113684,3354.1,3354.0,1.3120241]
[1642064071609,0.00113684,3354.1,3353.8,1.3120241]
[1642064072011,1.2079821,3354.3,3353.8,1.3120241]
[1642064072213,0.74543,3354.2,3353.8,1.3120241]
[1642064072411,0.74543,3354.2,3353.9,0.00113685]
[1642064072812,0.78196768,3354.2,3353.9,0.00113685]
[1642064073660,0.1192,3354.1,3353.9,0.00113685]
[1642064074861,0.78196768,3354.2,3353.9,0.00113685]
[1642064076063,3.04010829,3354.1,3353.9,0.00113685]
[1642064076264,3.82018712,3354.0,3353.9,0.00113685]
[1642064076460,3.93938712,3354.0,3353.9,0.00113685]
[1642064076661,4.23938712,3354.0,3353.8,1.25357095]
[1642064076861,3.088615,3353.9,3353.8,1.25357095]
[1642064077136,3.514615,3353.9,3353.8,1.25357095]
[1642064078432,4.260315,3353.9,3353.8,1.25357095]
[1642064078631,4.260315,3353.9,3353.7,0.03499885]
[1642064078832,4.46245317,3353.8,3353.7,0.03499885]
[1642064079031,5.48845317,3353.8,3353.7,0.03499885]
[1642064079231,5.48845317,3353.8,3353.7,0.03613569]
[1642064080861,5.18845317,3353.8,3353.7,0.03613569]
[1642064088966,2.56801693,3353.8,3353.7,0.03613569]
[1642064089365,5.35899037,3353.8,3353.7,0.03613569]
[1642064089766,2.26801693,3353.8,3353.7,0.03613569]
[1642064091165,2.26801693,3353.8,3353.7,0.02321469]
[1642064091566,1.96801693,3353.8,3353.7,0.02321469]
[1642064091767,2.26801693,3353.8,3353.7,0.02321469]
[1642064092402,5.03255671,3353.8,3353.7,0.02321469]
[1642064092809,2.56801693,3353.8,3353.7,0.02321469]
[1642064093011,5.29160287,3353.8,3353.7,0.02321469]
[1642064093211,2.56801693,3353.8,3353.7,0.02321469]
[1642064093417,2.68721693,3353.8,3353.7,0.02321469]
[1642064093813,5.4276617,3353.8,3353.7,0.02321469]
[1642064094615,5.43999709,3353.8,3353.7,0.02321469]
[1642064097599,6.7660828,3353.8,3353.7,0.02321469]
[1642064098000,6.6468828,3353.8,3353.7,0.02321469]
[1642064103018,0.7457073,3353.5,3352.7,0.1192]
[1642064103219,0.78169698,3353.3,3352.7,0.1192]
[1642064103461,0.78169698,3353.3,3352.8,0.00511581]
[1642064103663,0.3,3353.1,3352.8,0.00511581]
[1642064104061,1.48326817,3353.0,3352.8,0.00511581]
[1642064104262,1.48326817,3353.0,3352.8,1.22060549]
[1642064104663,1.48326817,3353.0,3352.9,0.00454739]
[1642064105263,2.22900817,3353.0,3352.9,0.00454739]
[1642064105664,2.22900817,3353.0,3352.9,1.22003707]
[1642064112969,0.1192,3353.3,3352.9,1.96555707]
[1642064113168,0.1192,3353.4,3352.9,1.96555707]
[1642064113367,0.37000343,3353.6,3353.0,0.00397897]
[1642064113368,0.1192,3353.5,3353.0,0.00397897]
[1642064113969,0.74557,3353.4,3353.0,0.00397897]
[1642064114170,2.31909975,3353.4,3353.0,1.21946865]
[1642064114368,1.16710856,3353.2,3353.1,0.7456]
[1642064114637,1.16710856,3353.2,3353.1,0.00341054]
[1642064115030,3.9854344,3353.2,3353.1,0.00341054]
[1642064115230,4.4114344,3353.2,3353.0,0.00397897]
[1642064115433,3.11701818,3353.1,3353.0,0.00397897]
[1642064115728,3.66221818,3353.1,3353.0,0.00397897]
[1642064116134,0.5452,3353.1,3353.0,0.00397897]
[1642064116331,3.24935407,3353.1,3353.0,0.00397897]
[1642064116530,3.27006033,3353.1,3353.0,0.00397897]
[1642064117331,4.53237826,3353.1,3353.0,1.21946865]
[1642064118363,4.53237826,3353.1,3353.0,0.00397897]
[1642064118768,5.13237826,3353.1,3352.5,0.00682108]
[1642064118967,1.51137879,3352.6,3352.5,0.00682108]
[1642064119167,0.74577,3352.9,3352.5,0.00682108]
[1642064119370,0.3,3352.8,3352.5,0.00682108]
[1642064119769,1.38151793,3353.1,3352.5,0.75253108]
[1642064119969,1.26231793,3353.1,3352.6,3.04004111]
[1642064120167,0.03751607,3353.2,3353.0,1.39323365]
[1642064120370,0.90409435,3353.5,3353.0,1.39323365]
[1642064120572,0.90409435,3353.5,3353.1,2.8196061]
[1642064120573,0.3,3353.4,3353.1,2.8196061]
[1642064120771,0.3,3353.4,3353.1,0.74899054]
[1642064120970,2.21662157,3353.7,3353.2,0.00284212]
[1642064121174,2.21662157,3353.7,3353.2,0.12204212]
[1642064121380,0.3,3353.7,3353.2,0.00284212]
[1642064121571,0.3,3353.7,3353.3,0.0022737]
[1642064121770,1.10822939,3353.5,3353.2,0.00284212]
[1642064122230,1.10822939,3353.5,3353.3,0.74544]
[1642064122631,1.10822939,3353.5,3353.4,0.00170527]
[1642064123434,1.10822939,3353.5,3353.3,0.0022737]
[1642064123833,1.1689362,3353.4,3353.3,0.0022737]
[1642064124936,0.03267913,3353.5,3353.3,0.0022737]
[1642064125134,3.15222157,3354.1,3353.3,0.0022737]
[1642064125135,0.15320574,3354.0,3353.3,0.0022737]
[1642064125336,1.91662157,3354.1,3353.5,0.74543]
[1642064125535,0.00170527,3354.0,3353.5,1.49083]
[1642064125979,2.77311005,3353.7,3353.5,0.74543]
[1642064126586,2.72311005,3353.7,3353.5,0.74543]
[1642064127386,1.49925849,3353.7,3353.5,0.74543]
[1642064127588,0.03729891,3354.1,3353.6,0.74534]
[1642064127788,0.12147369,3354.1,3353.7,0.74536]
[1642064127988,0.00113685,3353.9,3353.7,0.74536]
[1642064128389,1.42378053,3354.0,3353.7,0.74536]
[1642064128589,1.37278053,3353.8,3353.7,0.74536]
[1642064128788,1.37278053,3353.8,3353.6,2.23606]
[1642064130216,1.37278053,3353.8,3353.7,0.00794722]
[1642064134267,0.00113685,3353.9,3353.7,0.00794722]
[1642064134666,0.00113685,3353.9,3353.7,1.29611872]
[1642064135568,0.00113685,3353.9,3353.8,1.2881715]
[1642064140135,0.00113685,3353.9,3353.8,1.29611872]
[1642064143778,0.00113685,3353.9,3353.8,3.96979228]
[1642064144178,0.00113685,3353.9,3353.8,5.08899228]
[1642064144616,0.1192,3354.2,3353.8,5.08899228]
[1642064144819,0.1192,3354.2,3353.9,1.86442]
[1642064145017,0.00113684,3354.1,3354.0,2.97443433]
[1642064145422,0.00113684,3354.1,3354.0,3.97443433]
[1642064145822,0.00113684,3354.1,3354.0,5.46486653]
[1642064146421,0.00113684,3354.1,3354.0,6.75303803]
[1642064147222,0.00113684,3354.1,3354.0,7.05303803]
[1642064147420,0.00113684,3354.1,3354.0,6.75303803]
[1642064148667,0.00113684,3354.1,3354.0,6.87223803]
[1642064149671,1.23948685,3354.9,3354.7,1.19819433]
[1642064149871,1.23948685,3354.9,3354.7,0.74515]
[1642064150072,0.00397897,3354.8,3354.7,0.74515]
[1642064150278,0.00397897,3354.8,3354.6,1.4903]
[1642064150472,0.00397897,3354.8,3354.5,1.49044]
[1642064150681,12.242896,3355.1,3354.5,1.49044]
[1642064150682,0.1192,3355.0,3354.7,1.49038]
[1642064150970,0.1192,3355.0,3354.7,1.79038]
[1642064151172,0.00397897,3354.8,3354.7,1.79038]
[1642064151571,0.00397897,3354.8,3354.7,2.79038]
[1642064151772,0.00397897,3354.8,3354.7,3.09038]
[1642064152216,0.00397897,3354.8,3354.7,1.79038]
[1642064152823,13.62901121,3355.1,3354.7,0.3]
[1642064153021,13.62901121,3355.1,3354.8,0.7452441]
[1642064153224,0.00113684,3355.0,3354.8,0.7452441]
[1642064153824,0.00113684,3355.0,3354.9,2.64736482]
[1642064154221,0.00113684,3355.0,3354.9,1.0]
[1642064154424,0.00113684,3355.0,3354.8,1.7452441]
[1642064154925,0.00113684,3355.0,3354.9,1.27573648]
[1642064155887,0.12033684,3355.0,3354.9,1.27573648]
[1642064156074,0.12033684,3355.0,3354.6,3.0998781]
[1642064156473,0.00113684,3355.0,3354.6,3.0998781]
[1642064157081,0.00113684,3355.0,3354.7,0.3]
[1642064157280,0.00113684,3355.0,3354.7,1.7904118]
[1642064157485,0.00113684,3355.0,3354.7,3.06671581]
[1642064158082,5.73261181,3355.1,3354.7,3.06671581]
[1642064158282,5.85181181,3355.1,3354.8,0.00113684]
[1642064158486,5.85181181,3355.1,3354.9,1.4904429]
[1642064160126,5.73261181,3355.1,3355.0,0.30794722]
[1642064160523,5.73261181,3355.1,3355.0,0.60794722]
[1642064160924,5.73261181,3355.1,3355.0,1.58955023]
[1642064161131,5.73261181,3355.1,3355.0,5.21690385]
[1642064161529,5.73261181,3355.1,3355.0,3.86384676]
[1642064162526,5.73261181,3355.1,3355.0,4.16384676]
[1642064163026,5.73261181,3355.1,3355.0,2.88224375]
[1642064164479,5.73261181,3355.1,3355.0,1.58224375]
[1642064164678,5.73261181,3355.1,3355.0,1.28224375]
[1642064166079,5.73261181,3355.1,3355.0,1.58224375]
[1642064167325,5.73261181,3355.1,3355.0,0.30794722]
[1642064169831,5.73261181,3355.1,3355.0,0.00794722]
[1642064170880,5.73261181,3355.1,3355.0,1.27190175]
[1642064171672,5.73261181,3355.1,3355.0,0.00794722]
[1642064172474,5.73261181,3355.1,3355.0,0.30794722]
[1642064172774,5.73261181,3355.1,3355.0,1.69059039]
[1642064174075,5.73261181,3355.1,3355.0,1.57139039]
[1642064175424,5.73261181,3355.1,3355.0,1.87139039]
[1642064175623,5.73261181,3355.1,3355.0,1.57139039]
[1642064178475,5.73261181,3355.1,3355.0,1.99059039]
[1642064178677,5.73261181,3355.1,3355.0,2.99059039]
[1642064179077,5.73261181,3355.1,3355.0,1.69059039]
[1642064179283,5.73261181,3355.1,3355.0,4.58303429]
[1642064179480,5.73261181,3355.1,3355.0,5.76383429]
[1642064179679,5.73261181,3355.1,3355.0,2.87139039]
[1642064179883,3.25581161,3355.1,3355.0,2.87139039]
[1642064180082,0.1192,3355.7,3355.3,2.235]
[1642064180283,6.90314202,3355.8,3355.3,2.235]
[1642064180480,0.00341054,3355.6,3355.4,0.3]
[1642064180681,0.00341054,3355.6,3355.3,3.235]
[1642064180882,0.00284212,3355.5,3355.3,3.235]
[1642064181280,0.0022737,3355.4,3355.3,3.235]
[1642064181485,0.0022737,3355.4,3355.3,2.49]
[1642064181681,0.0022737,3355.4,3355.3,2.79]
[1642064181883,0.0022737,3355.4,3355.3,1.3]
[1642064182924,0.0022737,3355.4,3355.3,1.0]
[1642064183324,0.0022737,3355.4,3355.3,2.4900072]
[1642064183926,0.0022737,3355.4,3355.3,1.9092072]
[1642064184428,0.0022737,3355.4,3355.3,1.4900072]
[1642064184628,0.0022737,3355.4,3355.3,1.7900072]
[1642064185427,0.0022737,3355.4,3355.2,0.7449975]
[1642064185881,0.0022737,3355.4,3355.0,1.49808722]
[1642064185882,0.12090527,3355.3,3355.0,0.00794722]
[1642064186072,0.54690527,3355.3,3355.0,0.00794722]
[1642064186270,0.00113685,3355.2,3355.0,0.00794722]
[1642064186472,0.5452,3355.1,3355.0,0.00794722]
[1642064187473,0.5452,3355.1,3355.0,0.75316192]
[1642064187872,0.426,3355.1,3355.0,0.75316192]
[1642064188073,1.67844126,3355.1,3355.0,1.49838192]
[1642064188872,1.67844126,3355.1,3355.0,1.79838192]
[1642064189276,4.39110951,3355.1,3355.0,0.30794722]
[1642064189727,4.39110951,3355.1,3355.0,0.00794722]
[1642064190024,1.67844126,3355.1,3355.0,0.00794722]
[1642064190827,4.37155875,3355.1,3355.0,0.00794722]
[1642064191025,1.67844126,3355.1,3355.0,0.00794722]
[1642064191827,4.36620326,3355.1,3355.0,0.00794722]
[1642064192235,1.67844126,3355.1,3355.0,0.00794722]
[1642064193402,4.377755,3355.1,3355.0,0.00794722]
[1642064193586,1.67844126,3355.1,3355.0,0.00794722]
[1642064194591,4.38261594,3355.1,3355.0,0.00794722]
[1642064194993,1.67844126,3355.1,3355.0,0.00794722]
[1642064195194,4.38749834,3355.1,3355.0,0.00794722]
[1642064195595,4.50669834,3355.1,3355.0,0.00794722]
[1642064195796,5.42729834,3355.1,3355.0,0.00794722]
[1642064196597,5.44027577,3355.1,3354.7,9.58e-06]
[1642064196795,5.44027577,3355.1,3353.8,2.9816997]
[1642064196796,0.1192,3355.0,3353.8,2.9816997]
[1642064196997,0.1192,3355.0,3354.1,0.74545]
[1642064196998,0.426,3354.9,3354.1,0.74545]
[1642064197229,3.4483999,3354.8,3354.1,0.74545]
[1642064197433,0.426,3354.7,3354.1,0.74545]
[1642064197631,3.29357564,3354.6,3354.1,0.74545]
[1642064197830,3.29357564,3354.6,3353.9,0.00625265]
[1642064197831,0.426,3354.5,3353.9,0.00625265]
[1642064198034,1.34751527,3354.3,3354.2,1.27219444]
[1642064198235,4.59070558,3354.3,3354.2,1.27219444]
[1642064198435,1.77351527,3354.3,3354.2,1.27674182]
[1642064199434,3.02595653,3354.3,3354.2,0.00454738]
[1642064200037,5.85708024,3354.3,3354.2,0.00454738]
[1642064200235,4.60463898,3354.3,3354.2,0.00454738]
[1642064200437,4.60463898,3354.3,3354.2,1.27219444]
[1642064200912,4.60463898,3354.3,3354.2,1.27674182]
[1642064200913,1.77351527,3354.3,3354.2,1.27674182]
[1642064201703,3.0400585,3354.3,3354.2,1.27674182]
[1642064202709,3.0400585,3354.3,3354.2,0.00454738]
[1642064203108,3.0400585,3354.3,3354.1,0.75055581]
[1642064203506,3.0400585,3354.3,3354.2,0.00454738]